[Event "Live Chess"]
[Site "Chess.com"]
[Date "2024.06.02"]
[Round "-"]
[White "MagnersCarlsberg2870"]
[Black "imchessive"]
[Result "1-0"]
[WhiteElo "1741"]
[BlackElo "1584"]
[TimeControl "300"]
[EndTime "6:25:45 PDT"]
[Termination "MagnersCarlsberg2870 won by checkmate"]

1. d4 {[%clk 0:04:56.5]} 1... f5 {[%clk 0:04:58.9]} 2. e4 {[%clk 0:04:54.8]}
2... fxe4 {[%clk 0:04:57.4]} 3. Nc3 {[%clk 0:04:53.6]} 3... Nf6 {[%clk
0:04:56.6]} 4. Bg5 {[%clk 0:04:52.3]} 4... d6 {[%clk 0:04:53.1]} 5. f3 {[%clk
0:04:46.8]} 5... Nbd7 {[%clk 0:04:50.7]} 6. fxe4 {[%clk 0:04:44.9]} 6... g6
{[%clk 0:04:44.9]} 7. Nf3 {[%clk 0:04:37.5]} 7... e5 {[%clk 0:04:36]} 8. Bc4
{[%clk 0:04:35.3]} 8... c6 {[%clk 0:04:28.8]} 9. O-O {[%clk 0:04:33]} 9... d5
{[%clk 0:04:24.6]} 10. exd5 {[%clk 0:04:31.2]} 10... cxd5 {[%clk 0:04:23.8]} 11.
Nxd5 {[%clk 0:04:30.3]} 11... Bg7 {[%clk 0:04:17.5]} 12. Nxe5 {[%clk 0:04:23.2]}
12... h6 {[%clk 0:03:50.9]} 13. Nxd7 {[%clk 0:04:21.6]} 13... hxg5 {[%clk
0:03:40.6]} 14. N7xf6+ {[%clk 0:04:18.4]} 14... Bxf6 {[%clk 0:03:25.5]} 15.
Nxf6+ {[%clk 0:04:16.6]} 15... Kf8 {[%clk 0:03:18.9]} 16. Qf3 {[%clk 0:04:06.1]}
16... Qxd4+ {[%clk 0:02:55.2]} 17. Kh1 {[%clk 0:04:04.9]} 17... Kg7 {[%clk
0:02:53.2]} 18. b3 {[%clk 0:03:52.5]} 18... Bf5 {[%clk 0:02:51]} 19. g4 {[%clk
0:03:37.8]} 19... Qxf6 {[%clk 0:02:32.2]} 20. gxf5 {[%clk 0:03:36.1]} 20... Rhf8
{[%clk 0:02:28.8]} 21. Qxb7+ {[%clk 0:03:33.7]} 21... Kh6 {[%clk 0:02:24.5]} 22.
fxg6 {[%clk 0:03:30.6]} 22... Qd4 {[%clk 0:02:04.3]} 23. Qh7# {[%clk 0:03:28]}
1-0

[Event "Live Chess"]
[Site "Chess.com"]
[Date "2024.06.02"]
[Round "-"]
[White "wadsy27"]
[Black "PavelChernomordik"]
[Result "1-0"]
[WhiteElo "2587"]
[BlackElo "2505"]
[TimeControl "300"]
[EndTime "6:25:49 PDT"]
[Termination "wadsy27 won by resignation"]

1. d4 {[%clk 0:04:56.1]} 1... g6 {[%clk 0:04:58.7]} 2. c4 {[%clk 0:04:53.6]}
2... Bg7 {[%clk 0:04:57.4]} 3. Nf3 {[%clk 0:04:52.9]} 3... d6 {[%clk 0:04:56.2]}
4. Nc3 {[%clk 0:04:51.4]} 4... Nc6 {[%clk 0:04:53.8]} 5. d5 {[%clk 0:04:42.6]}
5... Ne5 {[%clk 0:04:51.4]} 6. Nxe5 {[%clk 0:04:41.7]} 6... Bxe5 {[%clk
0:04:49.7]} 7. e4 {[%clk 0:04:40.1]} 7... c6 {[%clk 0:04:48.1]} 8. Be2 {[%clk
0:04:34.5]} 8... Nf6 {[%clk 0:04:42.3]} 9. f3 {[%clk 0:04:24.1]} 9... Qb6 {[%clk
0:04:35]} 10. Qd3 {[%clk 0:04:21.6]} 10... Nh5 {[%clk 0:04:24.6]} 11. g3 {[%clk
0:04:15.3]} 11... Bh3 {[%clk 0:04:11.9]} 12. f4 {[%clk 0:03:59.5]} 12... Bg2
{[%clk 0:03:49.4]} 13. fxe5 {[%clk 0:03:51.9]} 13... Bxh1 {[%clk 0:03:48.1]} 14.
Be3 {[%clk 0:03:49.9]} 14... Qxb2 {[%clk 0:03:38.4]} 15. Rb1 {[%clk 0:03:48.2]}
15... Qa3 {[%clk 0:03:37.3]} 16. exd6 {[%clk 0:03:27.2]} 16... Qxd6 {[%clk
0:03:26.9]} 17. c5 {[%clk 0:03:16]} 17... Qd7 {[%clk 0:03:15.4]} 18. Kf2 {[%clk
0:03:09.3]} 18... Qh3 {[%clk 0:03:00.9]} 19. Rxh1 {[%clk 0:03:00.7]} 19... Nxg3
{[%clk 0:02:57.7]} 20. hxg3 {[%clk 0:02:39.6]} 20... Qxh1 {[%clk 0:02:56.2]} 21.
Bf3 {[%clk 0:02:39.2]} 21... Qa1 {[%clk 0:02:51.4]} 22. d6 {[%clk 0:02:32.8]}
22... O-O-O {[%clk 0:02:41.1]} 23. e5 {[%clk 0:02:26.9]} 23... Qb2+ {[%clk
0:02:34.6]} 24. Kg1 {[%clk 0:02:08.6]} 24... f6 {[%clk 0:02:25]} 25. e6 {[%clk
0:01:52.8]} 25... Qb4 {[%clk 0:02:10.9]} 26. Ne4 {[%clk 0:01:15.5]} 26... h5
{[%clk 0:01:56.2]} 27. Bf4 {[%clk 0:01:08.4]} 27... exd6 {[%clk 0:01:41.9]} 28.
cxd6 {[%clk 0:01:05.2]} 28... Kb8 {[%clk 0:01:30]} 29. e7 {[%clk 0:00:59.6]}
29... g5 {[%clk 0:01:04]} 30. exd8=Q+ {[%clk 0:00:52.1]} 30... Rxd8 {[%clk
0:01:02.5]} 31. Bd2 {[%clk 0:00:46.7]} 31... Qb6+ {[%clk 0:00:55.4]} 32. Be3
{[%clk 0:00:45.5]} 32... Qa5 {[%clk 0:00:41.9]} 33. Nxf6 {[%clk 0:00:22.9]}
33... Qe5 {[%clk 0:00:33]} 34. Ne4 {[%clk 0:00:22.1]} 34... h4 {[%clk
0:00:24.3]} 35. Bxg5 {[%clk 0:00:19.6]} 35... Rg8 {[%clk 0:00:20.9]} 36. Bxh4
{[%clk 0:00:15.8]} 36... Ka8 {[%clk 0:00:13.6]} 37. d7 {[%clk 0:00:14.9]} 37...
Qa1+ {[%clk 0:00:11.4]} 38. Bd1 {[%clk 0:00:13.5]} 38... Qh8 {[%clk 0:00:09.9]}
39. d8=Q+ {[%clk 0:00:12.3]} 39... Rxd8 {[%clk 0:00:08.9]} 40. Qxd8+ {[%clk
0:00:12.2]} 40... Qxd8 {[%clk 0:00:07.2]} 41. Bxd8 {[%clk 0:00:12.1]} 1-0

[Event "Live Chess"]
[Site "Chess.com"]
[Date "2024.06.02"]
[Round "-"]
[White "nyclone"]
[Black "FlyingChessKestrel13"]
[Result "0-1"]
[WhiteElo "1148"]
[BlackElo "2076"]
[TimeControl "300"]
[EndTime "6:25:54 PDT"]
[Termination "FlyingChessKestrel13 won by resignation"]

1. e4 {[%clk 0:04:58.5]} 1... d6 {[%clk 0:04:59.2]} 2. Nc3 {[%clk 0:04:57.7]}
2... g6 {[%clk 0:04:59.1]} 3. Bc4 {[%clk 0:04:54.1]} 3... Bg7 {[%clk 0:04:58.2]}
4. Nge2 {[%clk 0:04:47]} 4... Nf6 {[%clk 0:04:43.5]} 5. d3 {[%clk 0:04:44.6]}
5... O-O {[%clk 0:04:42.2]} 6. O-O {[%clk 0:04:42.1]} 6... c6 {[%clk 0:04:41.4]}
7. a3 {[%clk 0:04:40.5]} 7... d5 {[%clk 0:04:40.9]} 8. exd5 {[%clk 0:04:37.5]}
8... cxd5 {[%clk 0:04:40.8]} 9. Bb3 {[%clk 0:04:32]} 9... Nc6 {[%clk 0:04:40.1]}
10. Bg5 {[%clk 0:04:27.4]} 10... d4 {[%clk 0:04:39.2]} 11. Bxf6 {[%clk
0:04:15.7]} 11... Bxf6 {[%clk 0:04:37.5]} 12. Ne4 {[%clk 0:04:14.9]} 12... Bg7
{[%clk 0:04:36.5]} 13. Nd2 {[%clk 0:03:55]} 13... Bg4 {[%clk 0:04:22.5]} 14. Qe1
{[%clk 0:03:48]} 14... e5 {[%clk 0:04:21.4]} 15. Ne4 {[%clk 0:03:40.3]} 15...
Kh8 {[%clk 0:04:18.5]} 16. f3 {[%clk 0:03:31.2]} 16... Bc8 {[%clk 0:04:13.8]}
17. N2g3 {[%clk 0:03:29.3]} 17... f5 {[%clk 0:04:12.6]} 18. Nf2 {[%clk
0:03:23.4]} 18... Qd6 {[%clk 0:04:11]} 19. f4 {[%clk 0:03:08.2]} 19... exf4
{[%clk 0:04:07.3]} 20. Ne2 {[%clk 0:03:05.5]} 20... Bd7 {[%clk 0:04:01.2]} 21.
Nh3 {[%clk 0:03:03.2]} 21... Be5 {[%clk 0:03:58.1]} 22. Qh4 {[%clk 0:02:46.4]}
22... Bf6 {[%clk 0:03:51.3]} 23. Ng5 {[%clk 0:02:41.2]} 23... Qe7 {[%clk
0:03:45]} 24. Nxf4 {[%clk 0:02:24.8]} 24... Bxg5 {[%clk 0:03:36.9]} 25. Nxg6+
{[%clk 0:02:03.9]} 25... Kg7 {[%clk 0:03:34.2]} 26. Nxe7 {[%clk 0:01:59.3]}
26... Bxh4 {[%clk 0:03:31.5]} 27. Nxf5+ {[%clk 0:01:57]} 27... Rxf5 {[%clk
0:03:29.4]} 28. Rxf5 {[%clk 0:01:56.3]} 28... Bxf5 {[%clk 0:03:28.2]} 29. Rf1
{[%clk 0:01:54.4]} 29... Rf8 {[%clk 0:03:26.3]} 30. g3 {[%clk 0:01:48.5]} 30...
Be7 {[%clk 0:03:24.1]} 31. Re1 {[%clk 0:01:45.1]} 31... Bg6 {[%clk 0:03:22.7]}
32. Kg2 {[%clk 0:01:36.2]} 32... Bg5 {[%clk 0:03:20.6]} 33. Bd5 {[%clk
0:01:20.7]} 33... Be3 {[%clk 0:03:19.2]} 34. Kh3 {[%clk 0:01:14.2]} 34... Bf5+
{[%clk 0:03:14.7]} 35. Kh4 {[%clk 0:01:12.2]} 35... Kg6 {[%clk 0:03:10.1]} 36.
g4 {[%clk 0:01:05]} 36... Bf2+ {[%clk 0:03:08.9]} 37. Kh3 {[%clk 0:01:02.8]}
37... Bxe1 {[%clk 0:03:08]} 38. gxf5+ {[%clk 0:01:01.6]} 38... Rxf5 {[%clk
0:03:06.6]} 39. Be4 {[%clk 0:01:00.7]} 39... Kf6 {[%clk 0:03:05.8]} 40. Bxf5
{[%clk 0:00:59.8]} 40... Kxf5 {[%clk 0:03:05.2]} 41. Kg2 {[%clk 0:00:58.7]}
41... Bh4 {[%clk 0:03:03.4]} 42. Kf3 {[%clk 0:00:56.4]} 42... Bf6 {[%clk
0:03:02.4]} 43. h3 {[%clk 0:00:52.8]} 43... Ne5+ {[%clk 0:03:01.3]} 44. Ke2
{[%clk 0:00:51.7]} 44... Ng6 {[%clk 0:03:01]} 45. Kd2 {[%clk 0:00:47.9]} 45...
Nf4 {[%clk 0:03:00.2]} 46. c3 {[%clk 0:00:46.2]} 46... dxc3+ {[%clk 0:02:59.1]}
47. bxc3 {[%clk 0:00:43.7]} 47... Nxh3 {[%clk 0:02:59]} 48. d4 {[%clk
0:00:42.6]} 48... Nf4 {[%clk 0:02:58.3]} 49. Ke3 {[%clk 0:00:39.1]} 49... h5
{[%clk 0:02:57.4]} 50. a4 {[%clk 0:00:37]} 50... h4 {[%clk 0:02:56.6]} 51. Kf3
{[%clk 0:00:36]} 51... h3 {[%clk 0:02:55.4]} 52. Kg3 {[%clk 0:00:35]} 52... Ke4
{[%clk 0:02:55]} 53. d5 {[%clk 0:00:32.7]} 53... Nxd5 {[%clk 0:02:53.2]} 54. c4
{[%clk 0:00:32.1]} 54... Nf4 {[%clk 0:02:51.8]} 55. c5 {[%clk 0:00:29.5]} 55...
Be5 {[%clk 0:02:51]} 56. Kh2 {[%clk 0:00:27.7]} 56... Kd5 {[%clk 0:02:49.4]} 57.
c6 {[%clk 0:00:26.4]} 57... Kxc6 {[%clk 0:02:48.6]} 0-1

[Event "Live Chess"]
[Site "Chess.com"]
[Date "2024.06.02"]
[Round "-"]
[White "NAZRIZ1977"]
[Black "Nazar-Makarchuk"]
[Result "1-0"]
[WhiteElo "2083"]
[BlackElo "1435"]
[TimeControl "300"]
[EndTime "6:26:02 PDT"]
[Termination "NAZRIZ1977 won by checkmate"]

1. d4 {[%clk 0:04:53.1]} 1... d5 {[%clk 0:04:59.3]} 2. c4 {[%clk 0:04:52]} 2...
dxc4 {[%clk 0:04:58.4]} 3. Nc3 {[%clk 0:04:50.6]} 3... Nf6 {[%clk 0:04:57.7]} 4.
e4 {[%clk 0:04:49.5]} 4... e6 {[%clk 0:04:57.2]} 5. Bxc4 {[%clk 0:04:47.6]} 5...
c5 {[%clk 0:04:56.6]} 6. d5 {[%clk 0:04:43.5]} 6... exd5 {[%clk 0:04:55.5]} 7.
exd5 {[%clk 0:04:41.8]} 7... Nbd7 {[%clk 0:04:54.4]} 8. Qe2+ {[%clk 0:04:34.1]}
8... Qe7 {[%clk 0:04:52.7]} 9. Nb5 {[%clk 0:04:28]} 9... Qxe2+ {[%clk
0:04:50.6]} 10. Nxe2 {[%clk 0:04:27.2]} 10... Kd8 {[%clk 0:04:45.7]} 11. Bf4
{[%clk 0:04:25.4]} 11... a6 {[%clk 0:04:38.2]} 12. Bc7+ {[%clk 0:04:06.8]} 12...
Ke8 {[%clk 0:04:35.6]} 13. Nd6+ {[%clk 0:03:57.7]} 13... Bxd6 {[%clk 0:04:33.7]}
14. Bxd6 {[%clk 0:03:57.6]} 14... Nb6 {[%clk 0:04:30.1]} 15. b3 {[%clk
0:03:51.3]} 15... Nxc4 {[%clk 0:04:27.3]} 16. bxc4 {[%clk 0:03:50.1]} 16... Nd7
{[%clk 0:04:19.3]} 17. O-O {[%clk 0:03:44.1]} 17... b5 {[%clk 0:04:17.4]} 18.
Rfe1 {[%clk 0:03:42.8]} 18... bxc4 {[%clk 0:04:11]} 19. Nd4+ {[%clk 0:03:24.3]}
19... Kd8 {[%clk 0:04:08.2]} 20. Nc6# {[%clk 0:03:23.3]} 1-0

[Event "Live Chess"]
[Site "Chess.com"]
[Date "2024.06.02"]
[Round "-"]
[White "upoe610"]
[Black "vincents82"]
[Result "1-0"]
[WhiteElo "2148"]
[BlackElo "1994"]
[TimeControl "300"]
[EndTime "6:26:03 PDT"]
[Termination "upoe610 won by resignation"]

1. c4 {[%clk 0:04:58.9]} 1... c6 {[%clk 0:04:58.8]} 2. g3 {[%clk 0:04:57.5]}
2... d5 {[%clk 0:04:58.3]} 3. Nf3 {[%clk 0:04:57]} 3... Nf6 {[%clk 0:04:57.4]}
4. Bg2 {[%clk 0:04:56.1]} 4... Bf5 {[%clk 0:04:56.1]} 5. Qb3 {[%clk 0:04:54.7]}
5... Qb6 {[%clk 0:04:53.9]} 6. d3 {[%clk 0:04:54.1]} 6... e6 {[%clk 0:04:52.2]}
7. Be3 {[%clk 0:04:52.3]} 7... Qxb3 {[%clk 0:04:50.2]} 8. axb3 {[%clk
0:04:51.2]} 8... Nbd7 {[%clk 0:04:49.5]} 9. Bd4 {[%clk 0:04:49.2]} 9... c5
{[%clk 0:04:42.7]} 10. Bc3 {[%clk 0:04:48]} 10... d4 {[%clk 0:04:40.6]} 11. Bd2
{[%clk 0:04:47.3]} 11... Be7 {[%clk 0:04:38.3]} 12. Nh4 {[%clk 0:04:46.4]} 12...
Bg6 {[%clk 0:04:36.8]} 13. Nxg6 {[%clk 0:04:45.3]} 13... hxg6 {[%clk 0:04:35.4]}
14. Bxb7 {[%clk 0:04:44.3]} 14... Rb8 {[%clk 0:04:30.7]} 15. Rxa7 {[%clk
0:04:42.5]} 15... O-O {[%clk 0:04:28.2]} 16. O-O {[%clk 0:04:39]} 16... Bd8
{[%clk 0:04:18.3]} 17. Bc6 {[%clk 0:04:35.5]} 17... Ne5 {[%clk 0:04:16.1]} 18.
Bb5 {[%clk 0:04:33.9]} 18... Ne8 {[%clk 0:04:04.9]} 19. Bf4 {[%clk 0:04:31.9]}
19... f6 {[%clk 0:04:01.8]} 20. Bxe5 {[%clk 0:04:30.9]} 20... fxe5 {[%clk
0:04:00.3]} 21. Nd2 {[%clk 0:04:30.8]} 21... Nd6 {[%clk 0:03:56.8]} 22. Ba4
{[%clk 0:04:28.8]} 22... Bb6 {[%clk 0:03:48.7]} 23. Rd7 {[%clk 0:04:25.9]} 23...
Nf5 {[%clk 0:03:44.2]} 24. Ne4 {[%clk 0:04:23.8]} 24... Rf7 {[%clk 0:03:41]} 25.
Ng5 {[%clk 0:04:20.7]} 25... Rxd7 {[%clk 0:03:38.2]} 26. Bxd7 {[%clk 0:04:20.6]}
26... Ba5 {[%clk 0:03:32.6]} 27. Bxe6+ {[%clk 0:04:18.7]} 27... Kf8 {[%clk
0:03:31.9]} 28. Bd5 {[%clk 0:04:17.5]} 28... Rxb3 {[%clk 0:03:30.2]} 29. Ra1
{[%clk 0:04:15.4]} 29... Bb4 {[%clk 0:03:23.8]} 30. Ra7 {[%clk 0:04:13.5]} 30...
Rxb2 {[%clk 0:03:18.9]} 31. Bc6 {[%clk 0:04:01.2]} 31... Rxe2 {[%clk 0:03:06.3]}
32. Rf7+ {[%clk 0:03:44.8]} 32... Kg8 {[%clk 0:03:04]} 33. Rd7 {[%clk
0:03:33.2]} 33... Kf8 {[%clk 0:02:48.4]} 34. Ne6+ {[%clk 0:03:13.3]} 34... Kg8
{[%clk 0:02:41.4]} 35. Rd8+ {[%clk 0:03:00.8]} 35... Kh7 {[%clk 0:02:38.4]} 36.
Ng5+ {[%clk 0:02:59.4]} 36... Kh6 {[%clk 0:02:35.7]} 37. h4 {[%clk 0:02:59]}
37... Kh5 {[%clk 0:02:25.3]} 38. Bf3+ {[%clk 0:02:56.9]} 1-0

[Event "Live Chess"]
[Site "Chess.com"]
[Date "2024.06.02"]
[Round "-"]
[White "megabusyman"]
[Black "McFim"]
[Result "0-1"]
[WhiteElo "1830"]
[BlackElo "1765"]
[TimeControl "300"]
[EndTime "6:26:29 PDT"]
[Termination "McFim won by checkmate"]

1. e4 {[%clk 0:04:57.2]} 1... c6 {[%clk 0:04:58.7]} 2. Nc3 {[%clk 0:04:53.7]}
2... d5 {[%clk 0:04:58.6]} 3. d4 {[%clk 0:04:53.1]} 3... dxe4 {[%clk 0:04:57.4]}
4. Nxe4 {[%clk 0:04:53]} 4... Nd7 {[%clk 0:04:56.9]} 5. Qe2 {[%clk 0:04:43.7]}
5... Ndf6 {[%clk 0:04:55.6]} 6. Nf3 {[%clk 0:04:29.2]} 6... Nxe4 {[%clk
0:04:53.7]} 7. Qxe4 {[%clk 0:04:29.1]} 7... Nf6 {[%clk 0:04:53]} 8. Qh4 {[%clk
0:04:06.5]} 8... Bf5 {[%clk 0:04:47.8]} 9. c3 {[%clk 0:04:03.5]} 9... e6 {[%clk
0:04:45.9]} 10. Be2 {[%clk 0:03:54.1]} 10... Be7 {[%clk 0:04:42.6]} 11. Qg3
{[%clk 0:03:52.6]} 11... O-O {[%clk 0:04:39.7]} 12. h4 {[%clk 0:03:18.9]} 12...
Ne4 {[%clk 0:04:06.3]} 13. Qf4 {[%clk 0:03:12.9]} 13... Bd6 {[%clk 0:04:00.9]}
14. Qe3 {[%clk 0:03:06.7]} 14... Qc7 {[%clk 0:03:54.2]} 15. g4 {[%clk
0:02:01.1]} 15... Nxf2 {[%clk 0:03:24.1]} 16. Kxf2 {[%clk 0:01:51]} 16... Bg3+
{[%clk 0:03:20.5]} 17. Kg2 {[%clk 0:01:48.1]} 17... Bxg4 {[%clk 0:03:18.7]} 18.
Ne5 {[%clk 0:01:42.5]} 18... Bxe5 {[%clk 0:02:56.4]} 19. Bxg4 {[%clk 0:01:27.5]}
19... Bd6 {[%clk 0:02:52.5]} 20. Bd2 {[%clk 0:01:19]} 20... c5 {[%clk
0:02:50.7]} 21. Raf1 {[%clk 0:01:17.3]} 21... cxd4 {[%clk 0:02:48.1]} 22. cxd4
{[%clk 0:01:15.7]} 22... Rad8 {[%clk 0:02:40.3]} 23. Bc3 {[%clk 0:01:13]} 23...
Rde8 {[%clk 0:02:27.6]} 24. h5 {[%clk 0:01:08.8]} 24... f5 {[%clk 0:02:25.1]}
25. Bh3 {[%clk 0:00:57.4]} 25... Qc6+ {[%clk 0:02:20.2]} 26. Qf3 {[%clk
0:00:50.7]} 26... Qc8 {[%clk 0:02:02.8]} 27. Re1 {[%clk 0:00:44.2]} 27... b5
{[%clk 0:01:58.7]} 28. a3 {[%clk 0:00:41.9]} 28... Qc7 {[%clk 0:01:01]} 29. Re2
{[%clk 0:00:29.9]} 29... a5 {[%clk 0:00:59.4]} 30. Rhe1 {[%clk 0:00:28.9]} 30...
b4 {[%clk 0:00:57.1]} 31. axb4 {[%clk 0:00:28.8]} 31... axb4 {[%clk 0:00:56.3]}
32. Bd2 {[%clk 0:00:28.5]} 32... e5 {[%clk 0:00:53]} 33. dxe5 {[%clk 0:00:27.1]}
33... Bxe5 {[%clk 0:00:51]} 34. Bxb4 {[%clk 0:00:24.7]} 34... Rf7 {[%clk
0:00:43.5]} 35. Qd5 {[%clk 0:00:19.1]} 35... Qb7 {[%clk 0:00:33.1]} 36. Qxb7
{[%clk 0:00:17.9]} 36... Rxb7 {[%clk 0:00:31.2]} 37. Rxe5 {[%clk 0:00:17.8]}
37... Rxe5 {[%clk 0:00:30.1]} 38. Rxe5 {[%clk 0:00:17.7]} 38... Rxb4 {[%clk
0:00:29.1]} 39. Re2 {[%clk 0:00:17.6]} 39... g6 {[%clk 0:00:27.7]} 40. hxg6
{[%clk 0:00:16.7]} 40... hxg6 {[%clk 0:00:26.8]} 41. Kh2 {[%clk 0:00:16.6]}
41... Kg7 {[%clk 0:00:25.7]} 42. Bg2 {[%clk 0:00:16.3]} 42... Kf6 {[%clk
0:00:24.6]} 43. Kg3 {[%clk 0:00:16.2]} 43... g5 {[%clk 0:00:23.4]} 44. Bd5
{[%clk 0:00:15.6]} 44... Rd4 {[%clk 0:00:21.2]} 45. Kf2 {[%clk 0:00:15.5]} 45...
Rxd5 {[%clk 0:00:20.1]} 46. b4 {[%clk 0:00:14.2]} 46... Rb5 {[%clk 0:00:19.2]}
47. Rb2 {[%clk 0:00:13.4]} 47... g4 {[%clk 0:00:17.8]} 48. Ke3 {[%clk
0:00:12.8]} 48... Kg5 {[%clk 0:00:17.1]} 49. Rb3 {[%clk 0:00:12.3]} 49... f4+
{[%clk 0:00:16.2]} 50. Ke4 {[%clk 0:00:11.6]} 50... f3 {[%clk 0:00:15]} 51. Ke3
{[%clk 0:00:10.8]} 51... Kf5 {[%clk 0:00:12]} 52. Kf2 {[%clk 0:00:10.7]} 52...
Kf4 {[%clk 0:00:10.9]} 53. Rb2 {[%clk 0:00:10.5]} 53... g3+ {[%clk 0:00:10]} 54.
Kf1 {[%clk 0:00:10.2]} 54... g2+ {[%clk 0:00:06.6]} 55. Kf2 {[%clk 0:00:09.3]}
55... Rg5 {[%clk 0:00:05.6]} 56. Rd2 {[%clk 0:00:08.3]} 56... g1=Q# {[%clk
0:00:04]} 0-1

[Event "Live Chess"]
[Site "Chess.com"]
[Date "2024.06.02"]
[Round "-"]
[White "Ferrarifan27"]
[Black "JohanKjeldahl"]
[Result "1-0"]
[WhiteElo "2138"]
[BlackElo "1789"]
[TimeControl "300"]
[EndTime "6:26:31 PDT"]
[Termination "Ferrarifan27 won by resignation"]

1. e4 {[%clk 0:04:59.2]} 1... c5 {[%clk 0:04:58]} 2. Nf3 {[%clk 0:04:57.7]} 2...
e6 {[%clk 0:04:57]} 3. d4 {[%clk 0:04:55.8]} 3... cxd4 {[%clk 0:04:55.8]} 4.
Nxd4 {[%clk 0:04:55.7]} 4... Nc6 {[%clk 0:04:54.5]} 5. Nxc6 {[%clk 0:04:54.7]}
5... bxc6 {[%clk 0:04:52.6]} 6. e5 {[%clk 0:04:49.8]} 6... Qa5+ {[%clk
0:04:50.2]} 7. Nc3 {[%clk 0:04:47.4]} 7... Qxe5+ {[%clk 0:04:49]} 8. Be2 {[%clk
0:04:47.1]} 8... d5 {[%clk 0:04:46.8]} 9. O-O {[%clk 0:04:45.6]} 9... Bd6 {[%clk
0:04:45.8]} 10. g3 {[%clk 0:04:44.2]} 10... h5 {[%clk 0:04:42.2]} 11. Bf4 {[%clk
0:04:42.3]} 1-0

[Event "Live Chess"]
[Site "Chess.com"]
[Date "2024.06.02"]
[Round "-"]
[White "missedJariChance"]
[Black "KyryloPoluliakh"]
[Result "0-1"]
[WhiteElo "1388"]
[BlackElo "1539"]
[TimeControl "300"]
[EndTime "6:26:55 PDT"]
[Termination "KyryloPoluliakh won by resignation"]

1. b3 {[%clk 0:04:55.7]} 1... Nf6 {[%clk 0:04:56.3]} 2. Bb2 {[%clk 0:04:54.3]}
2... g6 {[%clk 0:04:55.5]} 3. Nf3 {[%clk 0:04:52.8]} 3... Bg7 {[%clk 0:04:53.6]}
4. e3 {[%clk 0:04:51.6]} 4... O-O {[%clk 0:04:52.6]} 5. Be2 {[%clk 0:04:47.5]}
5... c5 {[%clk 0:04:50.6]} 6. O-O {[%clk 0:04:45]} 6... Nc6 {[%clk 0:04:47.1]}
7. d4 {[%clk 0:04:41.9]} 7... cxd4 {[%clk 0:04:45.3]} 8. exd4 {[%clk 0:04:40.8]}
8... d5 {[%clk 0:04:44.7]} 9. c4 {[%clk 0:04:39.2]} 9... Bg4 {[%clk 0:04:36.8]}
10. cxd5 {[%clk 0:04:37.3]} 10... Qxd5 {[%clk 0:04:32]} 11. Nc3 {[%clk
0:04:32.4]} 11... Qd8 {[%clk 0:04:28.4]} 12. Na4 {[%clk 0:04:17]} 12... Nd5
{[%clk 0:04:09.5]} 13. Rb1 {[%clk 0:04:07.9]} 13... Nb6 {[%clk 0:04:03]} 14. Nc5
{[%clk 0:03:56.5]} 14... Bxf3 {[%clk 0:03:54.8]} 15. Bxf3 {[%clk 0:03:54.6]}
15... Nxd4 {[%clk 0:03:51.7]} 16. Bxb7 {[%clk 0:03:42.9]} 16... Rb8 {[%clk
0:03:45.3]} 17. Be4 {[%clk 0:03:34.6]} 17... Nb5 {[%clk 0:03:34.1]} 18. Bxg7
{[%clk 0:03:29.4]} 18... Kxg7 {[%clk 0:03:31.1]} 19. Qc2 {[%clk 0:02:57.7]}
19... Rc8 {[%clk 0:03:17.9]} 20. Rbd1 {[%clk 0:02:54]} 20... Qc7 {[%clk
0:03:13.5]} 21. Qb2+ {[%clk 0:02:42.2]} 21... Kg8 {[%clk 0:03:06.8]} 22. Nd3
{[%clk 0:02:22.9]} 22... Nd6 {[%clk 0:02:54.6]} 23. Rc1 {[%clk 0:02:14.3]} 23...
Qd7 {[%clk 0:02:46.6]} 24. Ne5 {[%clk 0:02:12.2]} 24... Qe6 {[%clk 0:02:38.5]}
25. Bf3 {[%clk 0:01:55.4]} 25... Rxc1 {[%clk 0:02:33.6]} 26. Rxc1 {[%clk
0:01:53]} 26... Rd8 {[%clk 0:02:13.8]} 27. h3 {[%clk 0:01:51.2]} 27... h5 {[%clk
0:02:09.9]} 28. Nd3 {[%clk 0:01:43.7]} 28... Nf5 {[%clk 0:02:02.9]} 29. Nf4
{[%clk 0:01:39.1]} 29... Qd6 {[%clk 0:01:51.6]} 30. Rd1 {[%clk 0:01:33.2]} 30...
Qc7 {[%clk 0:01:37.6]} 31. Rxd8+ {[%clk 0:01:25.4]} 31... Qxd8 {[%clk
0:01:33.9]} 32. a4 {[%clk 0:01:13.6]} 32... Qd4 {[%clk 0:01:29.8]} 33. Ne2
{[%clk 0:01:08.2]} 33... Qxb2 {[%clk 0:01:26.5]} 0-1

[Event "Live Chess"]
[Site "Chess.com"]
[Date "2024.06.02"]
[Round "-"]
[White "vincents82"]
[Black "MagnersCarlsberg2870"]
[Result "0-1"]
[WhiteElo "1981"]
[BlackElo "1754"]
[TimeControl "300"]
[EndTime "6:27:14 PDT"]
[Termination "MagnersCarlsberg2870 won by checkmate"]

1. e4 {[%clk 0:04:55.6]} 1... d5 {[%clk 0:04:57.2]} 2. exd5 {[%clk 0:04:54.5]}
2... Nf6 {[%clk 0:04:56.3]} 3. Nf3 {[%clk 0:04:53.4]} 3... Qxd5 {[%clk
0:04:54.8]} 4. d4 {[%clk 0:04:53]} 4... Qh5 {[%clk 0:04:53.6]} 5. Be2 {[%clk
0:04:52]} 5... Bg4 {[%clk 0:04:52.2]} 6. O-O {[%clk 0:04:49.9]} 6... e6 {[%clk
0:04:51.3]} 7. Ne5 {[%clk 0:04:48.9]} 7... Bxe2 {[%clk 0:04:48.1]} 8. Qe1 {[%clk
0:04:33.4]} 8... Bxf1 {[%clk 0:04:46.2]} 9. Qxf1 {[%clk 0:04:32.6]} 9... Bd6
{[%clk 0:04:44.1]} 10. Qb5+ {[%clk 0:04:28]} 10... c6 {[%clk 0:04:38.5]} 11.
Qxb7 {[%clk 0:04:27]} 11... Qd1# {[%clk 0:04:37.3]} 0-1